{"text_format":"3","workbook":"xlsx","n_sheets":2,"sheets":["Bộ theo dõi Dự án","Thiết lập"],"not_rendered":{"defined_names":6},"read":"whole","date_system":"1900"}

{"sheet":"Bộ theo dõi Dự án","index":0,"n_rows":13,"n_cols":15,"rows_kept":13}
[null,"Bộ theo dõi Dự án"]
[null,null,"Phần trăm Trên/Dưới để Gắn cờ: ",{"v":0.25,"d":"25%"}]
[]
[null,"Dự án","Danh mục","Đã Giao cho","Ngày bắt đầu\nDự kiến","Ngày hoàn thành \nDự kiến","Công việc Dự kiến (theo giờ)","Khoảng thời gian Dự kiến (theo ngày)","Ngày bắt đầu \nThực tế","Ngày hoàn thành\nThực tế","Biểu tượng cờ cho Công việc Thực tế Trên/Dưới (theo giờ)","Công việc Thực tế (theo giờ)","Biểu tượng cờ cho Khoảng thời gian Thực tế Trên/Dưới (theo ngày)","Khoảng thời gian Thực tế (theo ngày)","Ghi chú"]
[null,"Dự án 1","Danh mục 1","Nhân viên 1",{"$f":"TODAY()-65","v":"2017-08-09"},{"$f":"TODAY()-5","v":"2017-10-08"},210,{"$f":"IF(COUNTA('Bộ theo dõi Dự án'!$E5,'Bộ theo dõi Dự án'!$F5)<>2,\"\",DAYS360('Bộ theo dõi Dự án'!$E5,'Bộ theo dõi Dự án'!$F5,FALSE))","v":59},{"$f":"TODAY()-65","v":"2017-08-09"},{"$f":"TODAY()","v":"2017-10-13"},{"$f":"IFERROR(IF(Bộ_theo_dõi_Dự_án[Công việc Thực tế (theo giờ)]=0,\"\",IF(ABS((Bộ_theo_dõi_Dự_án[[#This Row],[Công việc Thực tế (theo giờ)]]-Bộ_theo_dõi_Dự_án[[#This Row],[Công việc Dự kiến (theo giờ)]])/Bộ_theo_dõi_Dự_án[[#This Row],[Công việc Dự kiến (theo giờ)]])>FlagPercent,1,0)),\"\")","v":1},300,{"$f":"IFERROR(IF(Bộ_theo_dõi_Dự_án[Khoảng thời gian Thực tế (theo ngày)]=0,\"\",IF(ABS((Bộ_theo_dõi_Dự_án[[#This Row],[Khoảng thời gian Thực tế (theo ngày)]]-Bộ_theo_dõi_Dự_án[[#This Row],[Khoảng thời gian Dự kiến (theo ngày)]])/Bộ_theo_dõi_Dự_án[[#This Row],[Khoảng thời gian Dự kiến (theo ngày)]])>FlagPercent,1,0)),\"\")","v":0},{"$f":"IF(COUNTA('Bộ theo dõi Dự án'!$I5,'Bộ theo dõi Dự án'!$J5)<>2,\"\",DAYS360('Bộ theo dõi Dự án'!$I5,'Bộ theo dõi Dự án'!$J5,FALSE))","v":64}]
[null,"Dự án 2","Danh mục 2","Nhân viên 4",{"$f":"TODAY()-41","v":"2017-09-02"},{"$f":"TODAY()-10","v":"2017-10-03"},400,{"$f":"IF(COUNTA('Bộ theo dõi Dự án'!$E6,'Bộ theo dõi Dự án'!$F6)<>2,\"\",DAYS360('Bộ theo dõi Dự án'!$E6,'Bộ theo dõi Dự án'!$F6,FALSE))","v":31},{"$f":"TODAY()-41","v":"2017-09-02"},{"$f":"TODAY()-7","v":"2017-10-06"},{"$f":"IFERROR(IF(Bộ_theo_dõi_Dự_án[Công việc Thực tế (theo giờ)]=0,\"\",IF(ABS((Bộ_theo_dõi_Dự_án[[#This Row],[Công việc Thực tế (theo giờ)]]-Bộ_theo_dõi_Dự_án[[#This Row],[Công việc Dự kiến (theo giờ)]])/Bộ_theo_dõi_Dự_án[[#This Row],[Công việc Dự kiến (theo giờ)]])>FlagPercent,1,0)),\"\")","v":0},390,{"$f":"IFERROR(IF(Bộ_theo_dõi_Dự_án[Khoảng thời gian Thực tế (theo ngày)]=0,\"\",IF(ABS((Bộ_theo_dõi_Dự_án[[#This Row],[Khoảng thời gian Thực tế (theo ngày)]]-Bộ_theo_dõi_Dự_án[[#This Row],[Khoảng thời gian Dự kiến (theo ngày)]])/Bộ_theo_dõi_Dự_án[[#This Row],[Khoảng thời gian Dự kiến (theo ngày)]])>FlagPercent,1,0)),\"\")","v":0},{"$f":"IF(COUNTA('Bộ theo dõi Dự án'!$I6,'Bộ theo dõi Dự án'!$J6)<>2,\"\",DAYS360('Bộ theo dõi Dự án'!$I6,'Bộ theo dõi Dự án'!$J6,FALSE))","v":34}]
[null,"Dự án 3","Danh mục 1","Nhân viên 2",{"$f":"TODAY()-100","v":"2017-07-05"},{"$f":"TODAY()-40","v":"2017-09-03"},500,{"$f":"IF(COUNTA('Bộ theo dõi Dự án'!$E7,'Bộ theo dõi Dự án'!$F7)<>2,\"\",DAYS360('Bộ theo dõi Dự án'!$E7,'Bộ theo dõi Dự án'!$F7,FALSE))","v":58},{"$f":"TODAY()-100","v":"2017-07-05"},{"$f":"TODAY()-27","v":"2017-09-16"},{"$f":"IFERROR(IF(Bộ_theo_dõi_Dự_án[Công việc Thực tế (theo giờ)]=0,\"\",IF(ABS((Bộ_theo_dõi_Dự_án[[#This Row],[Công việc Thực tế (theo giờ)]]-Bộ_theo_dõi_Dự_án[[#This Row],[Công việc Dự kiến (theo giờ)]])/Bộ_theo_dõi_Dự_án[[#This Row],[Công việc Dự kiến (theo giờ)]])>FlagPercent,1,0)),\"\")","v":0},500,{"$f":"IFERROR(IF(Bộ_theo_dõi_Dự_án[Khoảng thời gian Thực tế (theo ngày)]=0,\"\",IF(ABS((Bộ_theo_dõi_Dự_án[[#This Row],[Khoảng thời gian Thực tế (theo ngày)]]-Bộ_theo_dõi_Dự_án[[#This Row],[Khoảng thời gian Dự kiến (theo ngày)]])/Bộ_theo_dõi_Dự_án[[#This Row],[Khoảng thời gian Dự kiến (theo ngày)]])>FlagPercent,1,0)),\"\")","v":0},{"$f":"IF(COUNTA('Bộ theo dõi Dự án'!$I7,'Bộ theo dõi Dự án'!$J7)<>2,\"\",DAYS360('Bộ theo dõi Dự án'!$I7,'Bộ theo dõi Dự án'!$J7,FALSE))","v":71}]
[null,"Dự án 4","Danh mục 2","Nhân viên 3",{"$f":"TODAY()-90","v":"2017-07-15"},{"$f":"TODAY()-80","v":"2017-07-25"},250,{"$f":"IF(COUNTA('Bộ theo dõi Dự án'!$E8,'Bộ theo dõi Dự án'!$F8)<>2,\"\",DAYS360('Bộ theo dõi Dự án'!$E8,'Bộ theo dõi Dự án'!$F8,FALSE))","v":10},{"$f":"TODAY()-90","v":"2017-07-15"},{"$f":"TODAY()-71","v":"2017-08-03"},{"$f":"IFERROR(IF(Bộ_theo_dõi_Dự_án[Công việc Thực tế (theo giờ)]=0,\"\",IF(ABS((Bộ_theo_dõi_Dự_án[[#This Row],[Công việc Thực tế (theo giờ)]]-Bộ_theo_dõi_Dự_án[[#This Row],[Công việc Dự kiến (theo giờ)]])/Bộ_theo_dõi_Dự_án[[#This Row],[Công việc Dự kiến (theo giờ)]])>FlagPercent,1,0)),\"\")","v":0},276,{"$f":"IFERROR(IF(Bộ_theo_dõi_Dự_án[Khoảng thời gian Thực tế (theo ngày)]=0,\"\",IF(ABS((Bộ_theo_dõi_Dự_án[[#This Row],[Khoảng thời gian Thực tế (theo ngày)]]-Bộ_theo_dõi_Dự_án[[#This Row],[Khoảng thời gian Dự kiến (theo ngày)]])/Bộ_theo_dõi_Dự_án[[#This Row],[Khoảng thời gian Dự kiến (theo ngày)]])>FlagPercent,1,0)),\"\")","v":1},{"$f":"IF(COUNTA('Bộ theo dõi Dự án'!$I8,'Bộ theo dõi Dự án'!$J8)<>2,\"\",DAYS360('Bộ theo dõi Dự án'!$I8,'Bộ theo dõi Dự án'!$J8,FALSE))","v":18}]
[null,"Dự án 5","Danh mục 3","Nhân viên 2",{"$f":"TODAY()-90","v":"2017-07-15"},{"$f":"TODAY()-50","v":"2017-08-24"},300,{"$f":"IF(COUNTA('Bộ theo dõi Dự án'!$E9,'Bộ theo dõi Dự án'!$F9)<>2,\"\",DAYS360('Bộ theo dõi Dự án'!$E9,'Bộ theo dõi Dự án'!$F9,FALSE))","v":39},{"$f":"TODAY()-90","v":"2017-07-15"},{"$f":"TODAY()-44","v":"2017-08-30"},{"$f":"IFERROR(IF(Bộ_theo_dõi_Dự_án[Công việc Thực tế (theo giờ)]=0,\"\",IF(ABS((Bộ_theo_dõi_Dự_án[[#This Row],[Công việc Thực tế (theo giờ)]]-Bộ_theo_dõi_Dự_án[[#This Row],[Công việc Dự kiến (theo giờ)]])/Bộ_theo_dõi_Dự_án[[#This Row],[Công việc Dự kiến (theo giờ)]])>FlagPercent,1,0)),\"\")","v":0},310,{"$f":"IFERROR(IF(Bộ_theo_dõi_Dự_án[Khoảng thời gian Thực tế (theo ngày)]=0,\"\",IF(ABS((Bộ_theo_dõi_Dự_án[[#This Row],[Khoảng thời gian Thực tế (theo ngày)]]-Bộ_theo_dõi_Dự_án[[#This Row],[Khoảng thời gian Dự kiến (theo ngày)]])/Bộ_theo_dõi_Dự_án[[#This Row],[Khoảng thời gian Dự kiến (theo ngày)]])>FlagPercent,1,0)),\"\")","v":0},{"$f":"IF(COUNTA('Bộ theo dõi Dự án'!$I9,'Bộ theo dõi Dự án'!$J9)<>2,\"\",DAYS360('Bộ theo dõi Dự án'!$I9,'Bộ theo dõi Dự án'!$J9,FALSE))","v":45}]
[null,"Dự án 6","Danh mục 4","Nhân viên 4",{"$f":"TODAY()-60","v":"2017-08-14"},{"$f":"TODAY()-50","v":"2017-08-24"},500,{"$f":"IF(COUNTA('Bộ theo dõi Dự án'!$E10,'Bộ theo dõi Dự án'!$F10)<>2,\"\",DAYS360('Bộ theo dõi Dự án'!$E10,'Bộ theo dõi Dự án'!$F10,FALSE))","v":10},{"$f":"TODAY()-60","v":"2017-08-14"},{"$f":"TODAY()-45","v":"2017-08-29"},{"$f":"IFERROR(IF(Bộ_theo_dõi_Dự_án[Công việc Thực tế (theo giờ)]=0,\"\",IF(ABS((Bộ_theo_dõi_Dự_án[[#This Row],[Công việc Thực tế (theo giờ)]]-Bộ_theo_dõi_Dự_án[[#This Row],[Công việc Dự kiến (theo giờ)]])/Bộ_theo_dõi_Dự_án[[#This Row],[Công việc Dự kiến (theo giờ)]])>FlagPercent,1,0)),\"\")","v":0},510,{"$f":"IFERROR(IF(Bộ_theo_dõi_Dự_án[Khoảng thời gian Thực tế (theo ngày)]=0,\"\",IF(ABS((Bộ_theo_dõi_Dự_án[[#This Row],[Khoảng thời gian Thực tế (theo ngày)]]-Bộ_theo_dõi_Dự_án[[#This Row],[Khoảng thời gian Dự kiến (theo ngày)]])/Bộ_theo_dõi_Dự_án[[#This Row],[Khoảng thời gian Dự kiến (theo ngày)]])>FlagPercent,1,0)),\"\")","v":1},{"$f":"IF(COUNTA('Bộ theo dõi Dự án'!$I10,'Bộ theo dõi Dự án'!$J10)<>2,\"\",DAYS360('Bộ theo dõi Dự án'!$I10,'Bộ theo dõi Dự án'!$J10,FALSE))","v":15}]
[null,"Dự án 7","Danh mục 5","Nhân viên 1",{"$f":"TODAY()-44","v":"2017-08-30"},{"$f":"TODAY()-20","v":"2017-09-23"},750,{"$f":"IF(COUNTA('Bộ theo dõi Dự án'!$E11,'Bộ theo dõi Dự án'!$F11)<>2,\"\",DAYS360('Bộ theo dõi Dự án'!$E11,'Bộ theo dõi Dự án'!$F11,FALSE))","v":23},{"$f":"TODAY()-44","v":"2017-08-30"},{"$f":"TODAY()-15","v":"2017-09-28"},{"$f":"IFERROR(IF(Bộ_theo_dõi_Dự_án[Công việc Thực tế (theo giờ)]=0,\"\",IF(ABS((Bộ_theo_dõi_Dự_án[[#This Row],[Công việc Thực tế (theo giờ)]]-Bộ_theo_dõi_Dự_án[[#This Row],[Công việc Dự kiến (theo giờ)]])/Bộ_theo_dõi_Dự_án[[#This Row],[Công việc Dự kiến (theo giờ)]])>FlagPercent,1,0)),\"\")","v":0},790,{"$f":"IFERROR(IF(Bộ_theo_dõi_Dự_án[Khoảng thời gian Thực tế (theo ngày)]=0,\"\",IF(ABS((Bộ_theo_dõi_Dự_án[[#This Row],[Khoảng thời gian Thực tế (theo ngày)]]-Bộ_theo_dõi_Dự_án[[#This Row],[Khoảng thời gian Dự kiến (theo ngày)]])/Bộ_theo_dõi_Dự_án[[#This Row],[Khoảng thời gian Dự kiến (theo ngày)]])>FlagPercent,1,0)),\"\")","v":0},{"$f":"IF(COUNTA('Bộ theo dõi Dự án'!$I11,'Bộ theo dõi Dự án'!$J11)<>2,\"\",DAYS360('Bộ theo dõi Dự án'!$I11,'Bộ theo dõi Dự án'!$J11,FALSE))","v":28}]
[null,"Dự án 8","Danh mục 2","Nhân viên 1",{"$f":"TODAY()-39","v":"2017-09-04"},{"$f":"TODAY()","v":"2017-10-13"},450,{"$f":"IF(COUNTA('Bộ theo dõi Dự án'!$E12,'Bộ theo dõi Dự án'!$F12)<>2,\"\",DAYS360('Bộ theo dõi Dự án'!$E12,'Bộ theo dõi Dự án'!$F12,FALSE))","v":39},{"$f":"TODAY()-45","v":"2017-08-29"},{"$f":"TODAY()-5","v":"2017-10-08"},{"$f":"IFERROR(IF(Bộ_theo_dõi_Dự_án[Công việc Thực tế (theo giờ)]=0,\"\",IF(ABS((Bộ_theo_dõi_Dự_án[[#This Row],[Công việc Thực tế (theo giờ)]]-Bộ_theo_dõi_Dự_án[[#This Row],[Công việc Dự kiến (theo giờ)]])/Bộ_theo_dõi_Dự_án[[#This Row],[Công việc Dự kiến (theo giờ)]])>FlagPercent,1,0)),\"\")","v":0},430,{"$f":"IFERROR(IF(Bộ_theo_dõi_Dự_án[Khoảng thời gian Thực tế (theo ngày)]=0,\"\",IF(ABS((Bộ_theo_dõi_Dự_án[[#This Row],[Khoảng thời gian Thực tế (theo ngày)]]-Bộ_theo_dõi_Dự_án[[#This Row],[Khoảng thời gian Dự kiến (theo ngày)]])/Bộ_theo_dõi_Dự_án[[#This Row],[Khoảng thời gian Dự kiến (theo ngày)]])>FlagPercent,1,0)),\"\")","v":0},{"$f":"IF(COUNTA('Bộ theo dõi Dự án'!$I12,'Bộ theo dõi Dự án'!$J12)<>2,\"\",DAYS360('Bộ theo dõi Dự án'!$I12,'Bộ theo dõi Dự án'!$J12,FALSE))","v":39}]
[null,"dự án 9","Danh mục 4","Nhân viên 1","2016-02-05","2016-06-09",250,{"$f":"IF(COUNTA('Bộ theo dõi Dự án'!$E13,'Bộ theo dõi Dự án'!$F13)<>2,\"\",DAYS360('Bộ theo dõi Dự án'!$E13,'Bộ theo dõi Dự án'!$F13,FALSE))","v":124},"2016-03-05","2016-05-05",{"$f":"IFERROR(IF(Bộ_theo_dõi_Dự_án[Công việc Thực tế (theo giờ)]=0,\"\",IF(ABS((Bộ_theo_dõi_Dự_án[[#This Row],[Công việc Thực tế (theo giờ)]]-Bộ_theo_dõi_Dự_án[[#This Row],[Công việc Dự kiến (theo giờ)]])/Bộ_theo_dõi_Dự_án[[#This Row],[Công việc Dự kiến (theo giờ)]])>FlagPercent,1,0)),\"\")","v":0},200,{"$f":"IFERROR(IF(Bộ_theo_dõi_Dự_án[Khoảng thời gian Thực tế (theo ngày)]=0,\"\",IF(ABS((Bộ_theo_dõi_Dự_án[[#This Row],[Khoảng thời gian Thực tế (theo ngày)]]-Bộ_theo_dõi_Dự_án[[#This Row],[Khoảng thời gian Dự kiến (theo ngày)]])/Bộ_theo_dõi_Dự_án[[#This Row],[Khoảng thời gian Dự kiến (theo ngày)]])>FlagPercent,1,0)),\"\")","v":1},{"$f":"IF(COUNTA('Bộ theo dõi Dự án'!$I13,'Bộ theo dõi Dự án'!$J13)<>2,\"\",DAYS360('Bộ theo dõi Dự án'!$I13,'Bộ theo dõi Dự án'!$J13,FALSE))","v":60}]

{"sheet":"Thiết lập","index":1,"n_rows":10,"n_cols":3,"rows_kept":10}
[null,"Thiết lập"]
[]
[]
[null,"Tên Danh mục","Tên Nhân viên"]
[null,"Danh mục 1","Nhân viên 1"]
[null,"Danh mục 2","Nhân viên 2"]
[null,"Danh mục 3","Nhân viên 3"]
[null,"Danh mục 4","Nhân viên 4"]
[null,"Danh mục 5","Nhân viên 5"]
[null,"Danh mục 6","Nhân viên 6"]